bitfinex/quotes_BTCUSD_20220218
["timestamp","ask_amount","ask_price","bid_price","bid_amount"]
[1645193570039,0.171,40445.0,40444.0,0.19150596]
[1645193571341,0.17,40445.0,40444.0,0.19150596]
[1645193573093,0.22,40445.0,40444.0,0.19150596]
[1645193573294,0.17,40445.0,40444.0,0.19150596]
[1645193574195,0.171,40445.0,40444.0,0.19150596]
[1645193575397,0.17,40445.0,40444.0,0.19150596]
[1645193577236,0.17333224,40445.0,40444.0,0.18989014]
[1645193579239,0.10333224,40445.0,40444.0,0.18989014]
[1645193580190,0.10433224,40445.0,40444.0,0.18989014]
[1645193581390,0.10333224,40445.0,40444.0,0.18989014]
[1645193582191,0.10433224,40445.0,40444.0,0.18989014]
[1645193582391,0.10600948,40445.0,40444.0,0.18989014]
[1645193583445,0.10500948,40445.0,40444.0,0.18989014]
[1645193585852,0.10500948,40445.0,40444.0,0.58989014]
[1645193586054,0.0741707,40448.0,40446.0,0.21001896]
[1645193586245,0.63155888,40462.0,40446.0,0.26001896]
[1645193586246,0.001,40450.0,40446.0,0.26001896]
[1645193586447,0.001,40450.0,40449.0,0.15]
[1645193586645,0.001,40450.0,40449.0,0.58656785]
[1645193586646,0.071,40450.0,40449.0,0.58656785]
[1645193586891,0.171,40450.0,40449.0,0.63656785]
[1645193587291,0.17,40450.0,40449.0,0.63656785]
[1645193587689,0.17,40450.0,40449.0,0.92939481]
[1645193588689,0.17,40450.0,40449.0,0.87939481]
[1645193589090,0.17,40450.0,40449.0,0.68883105]
[1645193589789,0.17,40450.0,40449.0,0.73883105]
[1645193589988,0.17,40450.0,40449.0,0.9297805]
[1645193590645,0.30966907,40450.0,40449.0,0.9297805]
[1645193590842,0.30966907,40450.0,40449.0,0.73883105]
[1645193592439,0.30966907,40450.0,40449.0,0.74725276]
[1645193592644,0.30966907,40450.0,40449.0,0.75010747]
[1645193596702,0.30966907,40450.0,40449.0,0.74510747]
[1645193597703,0.30966907,40450.0,40449.0,0.69740561]
[1645193599843,0.1,40450.0,40449.0,0.69740561]
[1645193600044,0.16853676,40450.0,40449.0,0.69740561]
[1645193600241,0.16953676,40450.0,40449.0,0.69740561]
[1645193600843,0.16953676,40450.0,40449.0,0.45140152]
[1645193601547,0.16853676,40450.0,40449.0,0.45140152]
[1645193602198,0.16953676,40450.0,40449.0,0.45140152]
[1645193602600,0.16953676,40450.0,40449.0,0.01109386]
[1645193602800,0.16901531,40450.0,40449.0,0.01109386]
[1645193603200,0.06953676,40450.0,40449.0,0.01109386]
[1645193603399,0.16953676,40450.0,40449.0,0.01109386]
[1645193603600,0.16853676,40450.0,40449.0,0.28188348]
[1645193604205,0.16853676,40450.0,40449.0,0.33188348]
[1645193605503,0.1,40450.0,40449.0,0.73188348]
[1645193605746,0.1,40450.0,40449.0,0.85553048]
[1645193605949,0.00174127,40455.0,40450.0,1.15]
[1645193606151,0.10050283,40455.0,40454.0,0.45]
[1645193606347,0.10072078,40455.0,40454.0,0.65]
[1645193606647,0.00072078,40455.0,40454.0,0.84437898]
[1645193607244,0.00072078,40455.0,40454.0,0.69437898]
[1645193607647,0.00048364,40455.0,40454.0,0.69437898]
[1645193607848,0.00048364,40455.0,40454.0,0.34437898]
[1645193608051,0.10048364,40455.0,40454.0,0.34437898]
[1645193608250,0.10021795,40455.0,40454.0,0.34437898]
[1645193608851,0.10043898,40455.0,40454.0,0.34437898]
[1645193609513,0.10043898,40455.0,40454.0,0.15]
[1645193610111,0.10044207,40455.0,40454.0,0.15]
[1645193612212,0.10144207,40455.0,40454.0,0.15]
[1645193612413,0.10387731,40455.0,40454.0,0.15]
[1645193612712,0.10487731,40455.0,40454.0,0.15]
[1645193613346,0.10343524,40455.0,40454.0,0.15]
[1645193613544,0.10243524,40455.0,40454.0,0.15]
[1645193616450,0.10243524,40455.0,40454.0,0.2]
[1645193617693,0.1,40455.0,40454.0,0.15324562]
[1645193618697,0.1,40455.0,40454.0,0.20324562]
[1645193619296,0.09119877,40455.0,40454.0,0.20324562]
[1645193619497,0.00117417,40456.0,40454.0,0.20324562]
[1645193619701,0.00117417,40456.0,40455.0,0.0097]
[1645193620099,0.10117417,40456.0,40455.0,0.2671325]
[1645193620297,0.10217417,40456.0,40455.0,0.2574325]
[1645193620750,0.10217417,40456.0,40454.0,0.20324562]
[1645193621148,0.1,40455.0,40454.0,0.20324562]
[1645193622352,0.101,40455.0,40454.0,0.20324562]
[1645193622549,0.101,40455.0,40454.0,0.20765076]
[1645193624250,0.101,40455.0,40454.0,0.00765076]
[1645193624251,0.16853676,40455.0,40454.0,0.00765076]
[1645193624498,0.16953676,40455.0,40454.0,0.00765076]
[1645193625696,0.16853676,40455.0,40454.0,0.00765076]
[1645193626395,0.16953676,40455.0,40454.0,0.00765076]
[1645193627196,0.16953676,40455.0,40454.0,0.0051033]
[1645193627598,0.16953676,40455.0,40454.0,0.00767389]
[1645193627799,0.16853676,40455.0,40454.0,0.00767389]
[1645193628444,0.16953676,40455.0,40454.0,0.00767389]
[1645193629746,0.16853676,40455.0,40454.0,0.00767389]
[1645193630148,0.1,40455.0,40454.0,0.00767389]
[1645193630350,0.101,40455.0,40454.0,0.00767389]
[1645193630750,0.1507,40455.0,40454.0,0.00767389]
[1645193631149,0.21923676,40455.0,40454.0,0.00767389]
[1645193631750,0.21823676,40455.0,40454.0,0.00767389]
[1645193632394,0.21823676,40455.0,40454.0,0.0051033]
[1645193634094,0.1497,40455.0,40454.0,0.0051033]
[1645193635742,0.1497,40455.0,40453.0,0.15]
[1645193636143,0.1,40454.0,40453.0,0.15]
[1645193637746,0.1,40454.0,40453.0,0.2]
[1645193639404,0.1,40454.0,40453.0,0.05]
[1645193639603,0.1,40454.0,40451.0,0.111839]
[1645193639802,0.1,40454.0,40453.0,0.15]
[1645193640007,0.00117673,40455.0,40453.0,0.15]
[1645193640206,0.00117673,40455.0,40451.0,0.061839]
[1645193640410,0.101,40454.0,40451.0,0.061839]
[1645193640604,0.1,40452.0,40451.0,0.061839]
[1645193641208,0.1,40452.0,40451.0,0.211839]
[1645193642106,0.1,40452.0,40451.0,0.061839]
[1645193642307,0.1,40452.0,40451.0,0.211839]
[1645193643152,0.1,40452.0,40451.0,0.061839]
[1645193643348,0.1,40452.0,40451.0,0.211839]
[1645193646894,0.00293956,40454.0,40451.0,0.211839]
[1645193647297,0.1,40452.0,40451.0,0.211839]
[1645193647694,0.1,40452.0,40451.0,0.21555968]
[1645193648504,0.101,40452.0,40451.0,0.21555968]
[1645193649595,0.1,40452.0,40451.0,0.21555968]
[1645193650397,0.101,40452.0,40451.0,0.21555968]
[1645193651659,0.101,40452.0,40451.0,0.26555968]
[1645193651660,0.1,40452.0,40451.0,0.26555968]
[1645193652464,0.101,40452.0,40451.0,0.26613905]
[1645193653268,0.101,40452.0,40451.0,0.21613905]
[1645193653663,0.1,40452.0,40451.0,0.21613905]
[1645193653864,0.1,40452.0,40451.0,0.26613905]
[1645193654496,0.101,40452.0,40451.0,0.26613905]
[1645193655799,0.1,40452.0,40451.0,0.26613905]
[1645193656796,0.1,40452.0,40451.0,0.11613905]
[1645193657198,0.1,40452.0,40451.0,0.26613905]
[1645193657597,0.4,40452.0,40451.0,0.06613905]
[1645193657802,0.2997,40452.0,40451.0,0.00430005]
[1645193658001,0.5997,40452.0,40451.0,0.00430005]
[1645193658248,0.2997,40452.0,40451.0,0.00430005]
[1645193658452,0.3007,40452.0,40451.0,0.00430005]
[1645193658664,0.36923676,40452.0,40451.0,0.00430005]
[1645193658846,0.41923676,40452.0,40451.0,0.00430005]
[1645193659050,0.31923676,40452.0,40451.0,0.00430005]
[1645193659247,0.31923676,40452.0,40451.0,0.00010005]
[1645193659248,0.41923676,40452.0,40451.0,0.00010005]
[1645193659648,0.41823676,40452.0,40451.0,0.00010005]
[1645193659848,0.36823676,40452.0,40451.0,0.00010005]
[1645193660048,0.66823676,40452.0,40451.0,0.00010005]
[1645193660449,1.0999,40451.0,40446.0,0.21050375]
[1645193660649,1.0999,40451.0,40446.0,0.21073197]
[1645193660650,0.32204244,40447.0,40446.0,0.21073197]
[1645193660848,0.82174244,40447.0,40446.0,0.21073197]
[1645193661154,0.92174244,40447.0,40446.0,0.21073197]
[1645193661549,0.66823676,40447.0,40446.0,0.21073197]
[1645193662203,0.66823676,40447.0,40446.0,0.2104754]
[1645193662599,0.99274818,40447.0,40446.0,0.2104754]
[1645193663000,0.99203074,40447.0,40446.0,0.21070288]
[1645193663203,0.99203074,40447.0,40446.0,0.21047466]
[1645193663400,1.09203074,40447.0,40446.0,0.21047466]
[1645193663602,1.15389474,40447.0,40446.0,0.21047466]
[1645193664208,1.15389474,40447.0,40446.0,0.21067233]
[1645193664801,1.15389474,40447.0,40446.0,0.13647233]
[1645193665401,1.20389474,40447.0,40446.0,0.13647233]
[1645193665652,1.20389474,40447.0,40438.0,0.061866]
[1645193665653,1.33612184,40446.0,40438.0,0.061866]
[1645193665945,0.19227628,40442.0,40437.0,0.00261412]
[1645193666246,0.69197628,40442.0,40438.0,0.06218091]
[1645193666449,0.63010628,40442.0,40439.0,0.00031491]
[1645193666646,0.73010628,40442.0,40439.0,0.00031491]
[1645193670599,0.73110628,40442.0,40439.0,0.00031491]
[1645193670797,0.43110628,40442.0,40439.0,0.00031491]
[1645193671197,0.43110628,40442.0,40438.0,0.00031491]
[1645193671801,0.43010628,40442.0,40438.0,0.00031491]
[1645193672602,0.43010628,40442.0,40438.0,0.06218191]
[1645193672801,0.43634482,40442.0,40439.0,0.00031491]
[1645193673248,0.73634482,40442.0,40439.0,0.00031491]
[1645193674450,0.73634482,40442.0,40437.0,0.00031491]
[1645193675649,0.73634482,40442.0,40438.0,0.00031491]
[1645193675849,0.73634482,40442.0,40433.0,0.00031491]
[1645193676654,0.73634482,40442.0,40436.0,0.061868]
[1645193676905,0.73634482,40442.0,40437.0,0.00031491]
[1645193677202,0.43634482,40442.0,40437.0,0.00031491]
[1645193678203,0.43634482,40442.0,40433.0,0.00031491]
[1645193678601,0.43634482,40442.0,40434.0,0.061869]
[1645193678801,0.43634482,40442.0,40435.0,0.00031491]
[1645193679202,0.73634482,40442.0,40435.0,0.00031491]
[1645193681049,0.73634482,40442.0,40439.0,0.0002356]
[1645193681252,0.73634482,40442.0,40440.0,0.00031491]
[1645193682452,0.73010628,40442.0,40441.0,0.01199296]
[1645193682652,0.73010628,40442.0,40441.0,0.0143742]
[1645193683652,0.43010628,40442.0,40441.0,0.0143742]
[1645193684605,0.73010628,40442.0,40441.0,0.0143742]
[1645193685006,0.67394576,40442.0,40441.0,0.0143742]
[1645193685408,0.67494576,40442.0,40441.0,0.0143742]
[1645193685606,0.67494576,40442.0,40441.0,0.01430943]
[1645193685807,0.66256952,40442.0,40441.0,0.01430943]
[1645193686007,0.67256952,40442.0,40441.0,0.01430943]
[1645193686608,0.67156952,40442.0,40441.0,0.01430943]
[1645193687313,0.67256952,40442.0,40441.0,0.01430943]
[1645193687609,0.67256952,40442.0,40441.0,0.01238124]
[1645193688455,0.37256952,40442.0,40441.0,0.01238124]
[1645193688657,0.37156952,40442.0,40441.0,0.01238124]
[1645193689357,0.37256952,40442.0,40441.0,0.01238124]
[1645193689959,0.27256952,40442.0,40441.0,0.01238124]
[1645193690156,0.67256952,40442.0,40441.0,0.01238124]
[1645193690559,0.67156952,40442.0,40441.0,0.01238124]
[1645193691357,0.67256952,40442.0,40441.0,0.01238124]
[1645193692604,0.67156952,40442.0,40441.0,0.01238124]
[1645193695105,0.37156952,40442.0,40441.0,0.01238124]
[1645193695305,0.27156952,40442.0,40441.0,0.01238124]
[1645193695506,0.37156952,40442.0,40441.0,0.01238124]
[1645193696549,0.27156952,40442.0,40441.0,0.01238124]
[1645193696749,0.37156952,40442.0,40441.0,0.01238124]
[1645193696954,0.67156952,40442.0,40441.0,0.01238124]
[1645193697350,0.67256952,40442.0,40441.0,0.01238124]
[1645193698351,0.66756952,40442.0,40441.0,0.01238124]
[1645193698752,0.66656952,40442.0,40441.0,0.01238124]
[1645193699254,0.49922565,40442.0,40441.0,0.01238124]
[1645193699498,0.5107,40442.0,40441.0,0.01238124]
[1645193699699,0.6107,40442.0,40441.0,0.01238124]
[1645193700699,0.67156952,40442.0,40441.0,0.01238124]
[1645193701601,0.67256952,40442.0,40441.0,0.01238124]
[1645193702498,0.67760361,40442.0,40441.0,0.01031491]
[1645193702700,0.67760361,40442.0,40441.0,0.01]
[1645193702701,0.67833405,40442.0,40441.0,0.01]
[1645193703548,0.67933405,40442.0,40441.0,0.01]
[1645193704351,0.37933405,40442.0,40441.0,0.01]
[1645193704750,0.37833405,40442.0,40441.0,0.01]
[1645193705350,0.67833405,40442.0,40441.0,0.01]
[1645193705556,0.67933405,40442.0,40441.0,0.01]
[1645193705753,0.37933405,40442.0,40441.0,0.01]
[1645193706252,0.52933405,40442.0,40441.0,0.01]
[1645193706452,0.62933405,40442.0,40441.0,0.01]
[1645193706903,0.62833405,40442.0,40441.0,0.01]
[1645193707506,0.62933405,40442.0,40441.0,0.01]
[1645193707706,0.62256952,40442.0,40441.0,0.01074054]
[1645193707903,0.62256952,40442.0,40441.0,0.01182389]
[1645193708107,0.92256952,40442.0,40441.0,0.01182389]
[1645193708704,0.92156952,40442.0,40441.0,0.01182389]
[1645193709203,0.92156952,40442.0,40441.0,0.27792175]
[1645193709404,0.92256952,40442.0,40441.0,0.27792175]
[1645193710851,0.92156952,40442.0,40441.0,0.27792175]
[1645193711550,0.92256952,40442.0,40441.0,0.27792175]
[1645193712361,0.92256952,40442.0,40441.0,0.27718121]
[1645193712554,0.92256952,40442.0,40441.0,0.27838011]
[1645193712755,0.92156952,40442.0,40441.0,0.27838011]
[1645193713554,0.62156952,40442.0,40441.0,0.27838011]
[1645193715401,0.92156952,40442.0,40441.0,0.27838011]
[1645193715602,0.92256952,40442.0,40441.0,0.27838011]
[1645193716200,0.62256952,40442.0,40441.0,0.27838011]
[1645193716702,0.92256952,40442.0,40441.0,0.27838011]
[1645193717703,0.62256952,40442.0,40441.0,0.27838011]
[1645193718850,0.62156952,40442.0,40441.0,0.27838011]
[1645193721453,0.62091073,40442.0,40441.0,0.27838011]
[1645193721896,0.92091073,40442.0,40441.0,0.27838011]
[1645193723500,0.92191073,40442.0,40441.0,0.27838011]
[1645193723705,0.97191073,40442.0,40441.0,0.27838011]
[1645193724802,0.97091073,40442.0,40441.0,0.27838011]
[1645193725852,0.62091073,40442.0,40441.0,0.27838011]
[1645193727254,0.67091073,40442.0,40441.0,0.27838011]
[1645193727453,0.67091073,40442.0,40441.0,0.28066624]
[1645193728054,0.67091073,40442.0,40441.0,0.27838011]
[1645193730907,0.67091073,40442.0,40439.0,0.00063912]
[1645193731105,0.06853676,40440.0,40439.0,0.00084549]
[1645193731305,0.11823676,40440.0,40439.0,0.00084549]
[1645193731609,0.63495473,40442.0,40441.0,0.23176324]
[1645193731805,0.67536427,40442.0,40441.0,0.23176324]
[1645193732006,0.67536327,40442.0,40441.0,0.23176324]
[1645193732204,0.68495473,40442.0,40441.0,0.23176324]
[1645193732404,0.72536227,40442.0,40441.0,0.23176324]
[1645193732605,0.7335774,40442.0,40441.0,0.23176324]
[1645193733007,0.93951789,40442.0,40441.0,0.23176324]
[1645193733851,0.93851789,40442.0,40441.0,0.23176324]
[1645193734551,0.98821789,40442.0,40441.0,0.23176324]
[1645193735152,0.7204054,40442.0,40441.0,0.23176324]
[1645193737000,0.7214054,40442.0,40441.0,0.23176324]
[1645193738201,0.7204054,40442.0,40441.0,0.23176324]
[1645193740852,1.2204054,40442.0,40441.0,0.23176324]
[1645193741451,2.5314054,40442.0,40441.0,0.23176324]
[1645193741652,1.2204054,40442.0,40441.0,0.23176324]
[1645193742252,1.21319027,40442.0,40440.0,0.00429368]
[1645193742458,1.311,40440.0,40439.0,0.00051326]
[1645193742655,2.12281054,40440.0,40439.0,0.00051326]
[1645193742855,2.27281054,40440.0,40439.0,0.00051326]
[1645193743054,1.311,40437.0,40433.0,0.00205334]
[1645193743256,1.16071034,40434.0,40433.0,0.00083858]
[1645193743456,1.26041034,40434.0,40433.0,0.00083858]
[1645193743755,2.77141034,40434.0,40433.0,0.00083858]
[1645193743954,1.46041034,40434.0,40433.0,0.00083858]
[1645193744406,1.24630507,40434.0,40433.0,0.00083858]
[1645193744606,2.05573922,40434.0,40433.0,0.00167716]
[1645193744805,2.05573822,40434.0,40433.0,0.00167716]
[1645193745406,2.05573822,40434.0,40422.0,0.26410568]
[1645193745407,1.65986055,40433.0,40422.0,0.26410568]
[1645193745606,0.39010954,40432.0,40422.0,0.26410568]
[1645193745805,0.64010954,40432.0,40430.0,1.13860587]
[1645193746005,0.34041054,40431.0,40430.0,1.13860587]
[1645193746205,2.72096593,40431.0,40430.0,1.13860587]
[1645193746405,2.72096593,40431.0,40430.0,0.76720265]
[1645193746406,3.44266593,40431.0,40430.0,0.76720265]
[1645193747106,2.13166593,40431.0,40430.0,0.76720265]
[1645193747509,3.44266593,40431.0,40430.0,0.76720265]
[1645193747706,3.94266593,40431.0,40430.0,0.76720265]
[1645193748158,3.94266593,40431.0,40430.0,0.74983968]
[1645193748356,3.94266593,40431.0,40430.0,0.67553833]
[1645193749669,3.94266593,40431.0,40414.0,0.0011]
[1645193749670,0.60035154,40416.0,40414.0,0.0011]
[1645193749859,0.185684,40418.0,40414.0,0.0011]
[1645193749860,0.19693645,40417.0,40414.0,0.0011]
[1645193750255,0.19693645,40417.0,40415.0,0.08]
[1645193750459,0.19693645,40417.0,40414.0,0.0011]
[1645193750460,0.285664,40416.0,40414.0,0.0011]
[1645193750657,0.57021464,40415.0,40414.0,0.0011]
[1645193750857,0.1497,40415.0,40409.0,0.081]
[1645193751157,0.19693645,40411.0,40410.0,0.08]
[1645193751757,0.29693645,40411.0,40410.0,0.08]
[1645193752020,0.1,40411.0,40410.0,0.08]
[1645193753012,0.1,40411.0,40410.0,0.082]
[1645193754115,0.1,40411.0,40410.0,0.08]
[1645193754317,0.161901,40412.0,40410.0,0.08]
[1645193754514,0.161901,40412.0,40410.0,0.412345]
[1645193754719,0.061901,40412.0,40410.0,0.412345]
[1645193754914,0.061901,40412.0,40410.0,0.083]
[1645193755115,0.061901,40412.0,40410.0,0.50855477]
[1645193755315,0.061901,40412.0,40410.0,0.60855477]
[1645193755514,0.061901,40412.0,40410.0,0.80504933]
[1645193755956,0.061901,40412.0,40410.0,0.92880533]
[1645193756158,0.061901,40412.0,40410.0,0.36563445]
[1645193756461,0.1,40415.0,40412.0,0.518048]
[1645193756659,0.1,40415.0,40414.0,1.723345]
[1645193756858,0.061872,40417.0,40415.0,0.332345]
[1645193756859,0.1,40417.0,40415.0,0.332345]
[1645193757058,0.223744,40421.0,40416.0,0.382045]
[1645193757263,0.223744,40421.0,40420.0,0.412345]
[1645193758557,0.223744,40421.0,40420.0,0.462045]
[1645193760903,0.224744,40421.0,40420.0,0.462045]
[1645193761505,0.474744,40421.0,40420.0,0.462045]
[1645193761705,0.474744,40421.0,40420.0,0.46235696]
[1645193762304,0.473744,40421.0,40420.0,0.46235696]
[1645193762509,0.4818453,40421.0,40420.0,0.46235696]
[1645193762907,0.4818453,40421.0,40420.0,0.46535696]
[1645193763763,0.67878175,40421.0,40420.0,0.00331196]
[1645193763958,0.4818453,40421.0,40420.0,0.003]
[1645193764157,0.4818453,40421.0,40418.0,0.08]
[1645193764357,0.5437283,40421.0,40419.0,0.00031196]
[1645193764556,0.1,40420.0,40418.0,0.08]
[1645193764757,0.1,40420.0,40419.0,0.30916439]
[1645193764959,0.4447283,40421.0,40420.0,0.332345]
[1645193765261,0.3828453,40421.0,40420.0,0.332345]
[1645193765557,0.4828453,40421.0,40420.0,0.33265696]
[1645193766156,0.4818453,40421.0,40420.0,0.33265696]
[1645193766357,0.4818453,40421.0,40420.0,0.00031196]
[1645193766562,0.4818453,40421.0,40419.0,0.00031196]
[1645193766760,0.4818453,40421.0,40416.0,0.08031196]
[1645193767004,0.161882,40419.0,40417.0,0.332345]
[1645193767205,0.123762,40419.0,40417.0,0.00031196]
[1645193767403,0.123762,40419.0,40417.0,0.64440746]
[1645193767602,0.1,40418.0,40417.0,0.64471942]
[1645193767809,0.223762,40419.0,40417.0,0.64471942]
[1645193768001,0.223762,40419.0,40418.0,0.332345]
[1645193768203,0.223762,40419.0,40418.0,0.33265696]
[1645193768604,0.06188,40419.0,40418.0,0.4329188]
[1645193768806,0.411864,40421.0,40418.0,0.4826188]
[1645193769007,0.25,40421.0,40420.0,0.412345]
[1645193769206,0.25,40421.0,40420.0,0.512045]
[1645193769404,0.25,40421.0,40420.0,0.612045]
[1645193769804,0.25,40421.0,40420.0,0.562045]
[1645193770006,0.25,40421.0,40420.0,0.56235696]
[1645193771256,0.25,40421.0,40420.0,0.61235696]
[1645193771457,0.25,40421.0,40420.0,0.56235696]
[1645193772160,0.2515483,40421.0,40420.0,0.56545773]
[1645193775718,0.25145574,40421.0,40420.0,0.56545773]
[1645193777519,0.25145574,40421.0,40420.0,0.5685585]
[1645193779755,0.06131012,40426.0,40420.0,0.5685585]
[1645193779956,0.06131012,40426.0,40424.0,0.08]
[1645193780154,0.06131012,40426.0,40425.0,0.0497]
[1645193780354,0.1,40428.0,40425.0,0.382045]
[1645193780560,0.1,40428.0,40425.0,0.05001196]
[1645193780561,0.247466,40427.0,40425.0,0.05001196]
[1645193780760,0.247466,40427.0,40425.0,0.15001196]
[1645193780959,0.247466,40427.0,40425.0,0.05001196]
[1645193781155,0.247466,40427.0,40425.0,0.13001196]
[1645193781756,0.247466,40427.0,40425.0,0.05001196]
[1645193782003,0.247466,40427.0,40425.0,0.0497]
[1645193782404,0.247466,40427.0,40426.0,0.332345]
[1645193782607,0.123733,40427.0,40426.0,0.38235696]
[1645193783206,0.07177,40428.0,40426.0,0.05001196]
[1645193783710,0.07177,40428.0,40427.0,0.332345]
[1645193783905,0.061866,40428.0,40427.0,0.48235696]
[1645193784107,0.061866,40428.0,40427.0,0.15001196]
[1645193784306,0.061866,40428.0,40427.0,0.48235696]
[1645193784508,0.311866,40428.0,40427.0,0.15001196]
[1645193784711,0.311866,40428.0,40427.0,0.10031196]
[1645193785105,0.311866,40428.0,40427.0,0.332345]
[1645193785305,0.311866,40428.0,40427.0,0.1]
[1645193786558,0.311866,40428.0,40427.0,0.332345]
[1645193786756,0.311866,40428.0,40426.0,0.00031196]
[1645193786958,0.311866,40428.0,40427.0,1.743345]
[1645193787163,0.25,40428.0,40427.0,1.793045]
[1645193787459,0.25357601,40428.0,40427.0,1.793045]
[1645193788262,0.00118014,40429.0,40427.0,1.793045]
[1645193788461,0.00118014,40429.0,40428.0,1.691]
[1645193788760,0.00117417,40432.0,40431.0,1.311]
[1645193788966,0.00117417,40432.0,40431.0,1.773045]
[1645193789160,0.00066921,40435.0,40431.0,1.873045]
[1645193789408,0.1,40442.0,40438.0,1.311]
[1645193789607,0.1,40443.0,40441.0,0.56749727]
[1645193789809,0.1,40443.0,40442.0,0.3497]
[1645193790006,0.1,40447.0,40442.0,0.3497]
[1645193790206,0.1,40447.0,40442.0,0.4589]
[1645193790407,0.1,40447.0,40444.0,0.06183113]
[1645193790606,0.1,40447.0,40445.0,0.0497]
[1645193790806,0.1,40447.0,40445.0,0.111531]
[1645193791205,0.1,40447.0,40446.0,0.332345]
[1645193791511,0.1,40447.0,40445.0,0.0497]
[1645193792407,0.1,40447.0,40446.0,0.332345]
[1645193792607,0.1,40447.0,40445.0,0.0497]
[1645193792907,0.1,40447.0,40446.0,0.332345]
[1645193793358,0.1,40447.0,40446.0,0.1]
[1645193793859,0.1,40447.0,40445.0,0.0497]
[1645193796164,0.185497,40448.0,40442.0,0.0092]
[1645193796165,0.1,40446.0,40442.0,0.0092]
[1645193796368,0.02,40443.0,40442.0,0.0092]
[1645193796569,0.06186,40442.0,40440.0,0.003]
[1645193796763,0.45649643,40441.0,40431.0,0.0098]
[1645193797007,0.33437133,40435.0,40431.0,0.0098]
[1645193797406,0.1,40434.0,40431.0,0.0098]
[1645193797608,0.161861,40434.0,40431.0,0.0098]
[1645193797807,0.161861,40434.0,40429.0,0.00183428]
[1645193798006,0.161861,40434.0,40430.0,0.332345]
[1645193798206,0.161861,40434.0,40429.0,0.00183428]
[1645193798409,0.161861,40434.0,40430.0,0.332345]
[1645193798607,0.161861,40434.0,40431.0,0.332345]
[1645193798811,0.161861,40434.0,40429.0,0.00183428]
[1645193799808,0.161861,40434.0,40430.0,0.332345]
[1645193800208,0.161861,40434.0,40430.0,0.432345]
[1645193800663,0.161861,40434.0,40430.0,0.77078653]
[1645193800858,0.161861,40434.0,40430.0,0.432345]
[1645193801058,0.161861,40434.0,40432.0,0.00020778]
[1645193803762,0.161861,40434.0,40432.0,0.00042249]
[1645193804162,0.211861,40434.0,40432.0,0.00042249]
[1645193805211,0.221764,40434.0,40432.0,0.00042249]
[1645193805614,0.211861,40434.0,40432.0,0.00042249]
[1645193806212,0.211861,40434.0,40432.0,0.00021471]
[1645193806815,0.1,40433.0,40432.0,0.00021471]
[1645193807916,0.35697959,40433.0,40431.0,0.00024778]
[1645193808476,0.1,40432.0,40431.0,0.00024778]
[1645193808677,0.15,40432.0,40431.0,0.00035048]
[1645193809779,0.15,40432.0,40431.0,0.00057085]
[1645193809979,0.15,40432.0,40431.0,0.00257085]
[1645193810779,0.25,40433.0,40432.0,0.29999999]
[1645193811380,0.35,40433.0,40432.0,0.29999999]
[1645193811783,0.35,40433.0,40432.0,0.63434499]
[1645193812210,0.4,40433.0,40432.0,0.63434499]
[1645193813708,0.3,40433.0,40432.0,0.63234499]
[1645193813908,0.3,40433.0,40432.0,0.73434499]
[1645193814813,0.25,40433.0,40432.0,0.99530834]
[1645193815010,0.25,40433.0,40432.0,2.6717815]
[1645193815315,0.25,40433.0,40432.0,2.96589192]
[1645193815510,0.25,40433.0,40432.0,2.68041876]
[1645193815973,0.00058452,40437.0,40434.0,1.311]
[1645193816172,0.00058452,40437.0,40436.0,1.58156]
[1645193816374,0.00058452,40437.0,40436.0,2.063605]
[1645193816571,0.00058452,40437.0,40436.0,2.569394]
[1645193816971,0.00080647,40437.0,40436.0,2.56937924]
[1645193817574,0.00059459,40437.0,40436.0,1.25837924]
[1645193818171,0.00081654,40437.0,40436.0,2.37298358]
[1645193818373,0.00058124,40437.0,40436.0,2.56937856]
[1645193818572,0.00058124,40437.0,40436.0,2.37298358]
[1645193818773,0.00058124,40437.0,40436.0,2.56937852]
[1645193818974,0.00058124,40437.0,40436.0,2.37298358]
[1645193819609,0.00058124,40437.0,40436.0,2.619375]
[1645193820014,0.00058124,40437.0,40436.0,2.42698358]
[1645193820212,0.25058124,40437.0,40436.0,1.06598358]
[1645193820411,0.25058124,40437.0,40436.0,2.57337481]
[1645193820610,0.25058124,40437.0,40436.0,2.37698358]
[1645193821210,0.25058124,40437.0,40436.0,2.37298358]
[1645193821611,0.00058124,40437.0,40436.0,2.37298358]
[1645193821912,0.00082672,40437.0,40436.0,2.37698358]
[1645193822112,0.00082672,40437.0,40436.0,1.26237217]
[1645193822312,0.00082672,40437.0,40436.0,1.06598358]
[1645193822516,0.00678368,40437.0,40436.0,1.06598358]
[1645193822711,0.00881233,40437.0,40436.0,1.00415258]
[1645193823167,0.00867499,40437.0,40436.0,1.00015258]
[1645193823359,0.00798561,40437.0,40436.0,1.00015258]
[1645193823961,0.00798561,40437.0,40436.0,1.00515258]
[1645193824163,0.00798561,40437.0,40436.0,2.31615258]
[1645193824363,0.00798561,40437.0,40436.0,1.00515258]
[1645193824764,0.00798561,40437.0,40436.0,0.695774]
[1645193825966,0.00798561,40437.0,40436.0,0.97915287]
[1645193827013,0.00798561,40437.0,40436.0,0.690774]
[1645193827213,0.00798561,40437.0,40436.0,0.482045]
[1645193827416,0.00798561,40437.0,40436.0,0.432345]
[1645193827725,0.061853,40436.0,40434.0,0.0099]
[1645193827915,0.061853,40436.0,40435.0,0.00058525]
[1645193828415,0.161853,40436.0,40435.0,0.00058525]
[1645193829216,0.397435,40436.0,40433.0,0.45142043]
[1645193829412,0.05,40435.0,40433.0,0.45142043]
[1645193830013,0.25494032,40434.0,40433.0,0.45142043]
[1645193830217,0.27494032,40434.0,40433.0,0.45142043]
[1645193831070,0.32494032,40434.0,40433.0,0.45142043]
[1645193831272,0.42494032,40434.0,40433.0,0.45142043]
[1645193831474,0.96494032,40434.0,40433.0,0.08022543]
[1645193831874,0.96594032,40434.0,40432.0,0.00973297]
[1645193832073,1.02780932,40434.0,40432.0,0.00973297]
[1645193832372,1.02780932,40434.0,40428.0,0.002]
[1645193832373,0.329742,40433.0,40428.0,0.002]
[1645193832572,0.627202,40433.0,40428.0,0.002]
[1645193832777,0.12,40430.0,40428.0,0.002]
[1645193833172,0.12,40430.0,40425.0,0.00031196]
[1645193833373,0.05,40431.0,40425.0,0.00031196]